Workbook

Sheet Working
B1: Avg returns on a positive trade are 20% | D1: Example | E1: wealth | F1: money invested | G1: money won | H1: final money
B2: Avg Losses on a negative trade were 10% | E2: 10000$ | F2: 100$ | G2: 20$ | H2: =10000+20 -> 10020 | J2: 100 | K2: 0.2
B3: Wealth | C3: W | E3: x= 0.01 | J3: you will end up with $120
B4: Fraction | C4: x% | D4: of my total wealth
J6: W | K6: 10$
B7: Case 1 (I win) | F7: Case 2 (I lose) | J7: 100 | K7: 20$ | L7: 120$
B8: Money invested | C8: xW | E8: Money invested | F8: xW
B9: WIN | C9: 0.2xW | E9: Lose | F9: 0.1xW
B10: Total Wealth after winning | C10: W+0.2xW | E10: Wealth after losing | F10: W-0.1xW
C11: W(1+0.2x) | F11: W(1-0.1x)
K12: trade 3 times
B13: Wealth to start | C13: W(1+0.2x) | F13: W(1-0.1x) | K13: Win the 1st time
B14: Fraction | C14: x% | D14: of my total wealth | K14: lose the 2nd time
K15: Win again the 3rd time
B16: Case 1a (I win) | E16: Case 2a
J17: Start | K17: W
B18: Money invested | C18: x*W(1+0.2x) | E18: Money invested | F18: x*W(1-0.1x) | J18: 1st trade | K18: W*(1+0.2x)
B19: WIN | C19: 0.2*x*W(1+0.2x) | E19: Lose | F19: 0.1*x*W*(1-0.1x) | J19: 2nd trade | K19: W*(1+0.2x) | M19: *(1-0.1x)
B20: Total Wealth after winning | C20: W(1+0.2x) + 0.2x*W(1+0.2x) | E20: wealth after losing | F20: W(1-0.1x)-0.1*x*W*(1-0.1x) | J20: 3rd trade | K20: W*(1+0.2x)*(1-0.1x) | M20: *(1+0.2x)
C21: W(1+0.2x)(1+0.2x) | F21: W(1-0.1x)(1-0.1x)
B23: Whenever I win---> my money will increase by (1+0.2x)
B24: Whenever I lose---> my money will get multiplied by (1-0.1x) | F24: If I invest 10 times in this strategy:
F25: win 5 times
F26: lose 5 times
F27: Wealth ---> W(1+0.2x)^5*(1-0.1x)^5
A31: Example with numbers | J31: Starting Wealth is W
A32: W | B32: 10000 | J32: Win 'n' times
A33: x | B33: 0.1 | J33: Lose 'm' times
A34: Win% | B34: 0.2
I35: Total W = | J35: W*(1+0.2x)^n * (1-0.1x)^m
A36: Money invested | B36: =B32*B33 -> 1000
A37: Win | B37: =B36*B34 -> 200
A38: Total wealth | B38: =B37+B32 -> 10200 | C38: W*(1+0.2x)
A40: Case 1a
A41: Money invested | B41: =B38*B33 -> 1020
A42: Win | B42: =B41*B34 -> 204
A43: Total wealth | B43: =B42+B38 -> 10404 | C43: W(1+0.2x)(1+0.2x)

Sheet Kelly
A1: Winning Returns | B1: 0.2 | D1: =B1 -> 0.2 | F1: Avg. Returns of +ve trade
A2: Losing returns | B2: 0.1 | D2: =B2 -> 0.1 | F2: Avg. Returns of -ve trade
A3: Number of time invested the strategy | B3: 100
A4: Prob of winning | B4: 0.35
A5: Prob of Losing | B5: =1-B4 -> 0.65
A6: 100 | C6: Fraction of money invested | D6: Wins | E6: Losses | F6: Final Wealth
C7: 0.01 | D7: =$B$4*$B$3 -> 35 | E7: =$B$5*$B$3 -> 65 | F7: =(1+$B$1*C7)^D7*(1-$B$2*C7)^E7*$A$6 -> 100.4909584
C8: 0.02 | D8: =$B$4*$B$3 -> 35 | E8: =$B$5*$B$3 -> 65 | F8: =(1+$B$1*C8)^D8*(1-$B$2*C8)^E8*$A$6 -> 100.9636708
C9: 0.03 | D9: 35 | E9: 65 | F9: =(1+$B$1*C9)^D9*(1-$B$2*C9)^E9*$A$6 -> 101.4179004
C10: 0.04 | D10: 35 | E10: 65 | F10: 101.8534212
C11: 0.05 | D11: 35 | E11: 65 | F11: 102.2700176
C12: 0.06 | D12: 35 | E12: 65 | F12: 102.667485
C13: 0.07 | D13: 35 | E13: 65 | F13: 103.0456296
C14: 0.08 | D14: 35 | E14: 65 | F14: 103.4042689
C15: 0.09 | D15: 35 | E15: 65 | F15: 103.7432315
C16: 0.1 | D16: 35 | E16: 65 | F16: 104.0623575
C17: 0.11 | D17: 35 | E17: 65 | F17: 104.3614986
C18: 0.12 | D18: 35 | E18: 65 | F18: 104.6405179
C19: 0.13 | D19: 35 | E19: 65 | F19: 104.8992905
C20: 0.14 | D20: 35 | E20: 65 | F20: 105.1377029
C21: 0.15 | D21: 35 | E21: 65 | F21: 105.3556539
C22: 0.16 | D22: 35 | E22: 65 | F22: 105.553054
C23: 0.17 | D23: 35 | E23: 65 | F23: 105.7298255
C24: 0.18 | D24: 35 | E24: 65 | F24: 105.8859032
C25: 0.19 | D25: 35 | E25: 65 | F25: 106.0212335
C26: 0.2 | D26: 35 | E26: 65 | F26: 106.135775
C27: 0.21 | D27: 35 | E27: 65 | F27: 106.2294984
C28: 0.22 | D28: 35 | E28: 65 | F28: 106.3023865
C29: 0.23 | D29: 35 | E29: 65 | F29: 106.3544339
C30: 0.24 | D30: 35 | E30: 65 | F30: 106.3856475
C31: 0.25 | D31: 35 | E31: 65 | F31: 106.3960458
C32: 0.26 | D32: 35 | E32: 65 | F32: 106.3856596
C33: 0.27 | D33: 35 | E33: 65 | F33: 106.3545313
C34: 0.28 | D34: 35 | E34: 65 | F34: 106.3027151
C35: 0.29 | D35: 35 | E35: 65 | F35: 106.2302769
C36: 0.3 | D36: 35 | E36: 65 | F36: 106.1372941
C37: 0.31 | D37: 35 | E37: 65 | F37: 106.0238558
C38: 0.32 | D38: 35 | E38: 65 | F38: 105.8900622
C39: 0.33 | D39: 35 | E39: 65 | F39: 105.736025
C40: 0.34 | D40: 35 | E40: 65 | F40: 105.5618667
C41: 0.35 | D41: 35 | E41: 65 | F41: 105.3677209
C42: 0.36 | D42: 35 | E42: 65 | F42: 105.1537321
C43: 0.37 | D43: 35 | E43: 65 | F43: 104.9200553
C44: 0.38 | D44: 35 | E44: 65 | F44: 104.666856
C45: 0.39 | D45: 35 | E45: 65 | F45: 104.39431
C46: 0.4 | D46: 35 | E46: 65 | F46: 104.1026032
C47: 0.41 | D47: 35 | E47: 65 | F47: 103.7919313
C48: 0.42 | D48: 35 | E48: 65 | F48: 103.4624998
C49: 0.43 | D49: 35 | E49: 65 | F49: 103.1145235
C50: 0.44 | D50: 35 | E50: 65 | F50: 102.7482268
C51: 0.45 | D51: 35 | E51: 65 | F51: 102.3638427
C52: 0.46 | D52: 35 | E52: 65 | F52: 101.9616133
C53: 0.47 | D53: 35 | E53: 65 | F53: 101.5417892
C54: 0.48 | D54: 35 | E54: 65 | F54: 101.1046291
C55: 0.49 | D55: 35 | E55: 65 | F55: 100.6503999
C56: 0.5 | D56: 35 | E56: 65 | F56: 100.1793765
C57: 0.51 | D57: 35 | E57: 65 | F57: 99.69184093
C58: 0.52 | D58: 35 | E58: 65 | F58: 99.18808276
C59: 0.53 | D59: 35 | E59: 65 | F59: 98.66839849
C60: 0.54 | D60: 35 | E60: 65 | F60: 98.13309131
C61: 0.55 | D61: 35 | E61: 65 | F61: 97.58247087
C62: 0.56 | D62: 35 | E62: 65 | F62: 97.01685299
C63: 0.57 | D63: 35 | E63: 65 | F63: 96.43655934
C64: 0.58 | D64: 35 | E64: 65 | F64: 95.84191718
C65: 0.59 | D65: 35 | E65: 65 | F65: 95.23325908
C66: 0.6 | D66: 35 | E66: 65 | F66: 94.61092258
C67: 0.61 | D67: 35 | E67: 65 | F67: 93.97524995
C68: 0.62 | D68: 35 | E68: 65 | F68: 93.32658787
C69: 0.63 | D69: 35 | E69: 65 | F69: 92.66528712
C70: 0.64 | D70: 35 | E70: 65 | F70: 91.99170232
C71: 0.65 | D71: 35 | E71: 65 | F71: 91.3061916
C72: 0.66 | D72: =$B$4*$B$3 -> 35 | E72: =$B$5*$B$3 -> 65 | F72: =(1+$B$1*C72)^D72*(1-$B$2*C72)^E72*$A$6 -> 90.6091163
C73: 0.67 | D73: 35 | E73: 65 | F73: 89.9008407
C74: 0.68 | D74: 35 | E74: 65 | F74: 89.18173171
C75: 0.69 | D75: 35 | E75: 65 | F75: 88.45215858
C76: 0.7 | D76: 35 | E76: 65 | F76: 87.71249258
C77: 0.71 | D77: 35 | E77: 65 | F77: 86.96310674
C78: 0.72 | D78: 35 | E78: 65 | F78: 86.20437555
C79: 0.73 | D79: 35 | E79: 65 | F79: 85.43667465
C80: 0.74 | D80: 35 | E80: 65 | F80: 84.66038059
C81: 0.75 | D81: 35 | E81: 65 | F81: 83.87587048
C82: 0.76 | D82: 35 | E82: 65 | F82: 83.08352179
C83: 0.77 | D83: 35 | E83: 65 | F83: 82.28371199
C84: 0.78 | D84: 35 | E84: 65 | F84: 81.47681833
C85: 0.79 | D85: 35 | E85: 65 | F85: 80.66321756
C86: 0.8 | D86: 35 | E86: 65 | F86: 79.84328565
C87: 0.81 | D87: 35 | E87: 65 | F87: 79.01739754
C88: 0.82 | D88: 35 | E88: 65 | F88: 78.18592689
C89: 0.83 | D89: 35 | E89: 65 | F89: 77.34924579
C90: 0.84 | D90: 35 | E90: 65 | F90: 76.50772454
C91: 0.85 | D91: 35 | E91: 65 | F91: 75.66173144
C92: 0.86 | D92: 35 | E92: 65 | F92: 74.81163246
C93: 0.87 | D93: 35 | E93: 65 | F93: 73.95779111
C94: 0.88 | D94: 35 | E94: 65 | F94: 73.10056813
C95: 0.89 | D95: 35 | E95: 65 | F95: 72.24032132
C96: 0.9 | D96: 35 | E96: 65 | F96: 71.37740531
C97: 0.91 | D97: 35 | E97: 65 | F97: 70.51217135
C98: 0.92 | D98: 35 | E98: 65 | F98: 69.64496708
C99: 0.93 | D99: 35 | E99: 65 | F99: 68.77613638
C100: 0.94 | D100: 35 | E100: 65 | F100: 67.90601915
C101: 0.95 | D101: 35 | E101: 65 | F101: 67.03495113
C102: 0.96 | D102: 35 | E102: 65 | F102: 66.16326372
C103: 0.97 | D103: 35 | E103: 65 | F103: 65.29128381
C104: 0.98 | D104: 35 | E104: 65 | F104: 64.41933363
C105: 0.99 | D105: 35 | E105: 65 | F105: 63.54773056
C106: 1 | D106: 35 | E106: 65 | F106: 62.67678701

Sheet Kelly_SMA
A1: Winning Returns | B1: 0.1038 | D1: =B1 -> 0.1038 | F1: Avg. Returns of +ve trade
A2: Losing returns | B2: 0.029 | D2: =B2 -> 0.029 | F2: Avg. Returns of -ve trade
A3: Number of time invested the strategy | B3: 100
A4: Prob of winning | B4: 0.38
A5: Prob of Losing | B5: =1-B4 -> 0.62
A6: 10 | C6: Fraction of money invested | D6: Wins | E6: Losses | F6: Final Wealth
C7: 0.01 | D7: =$B$4*$B$3 -> 38 | E7: =$B$5*$B$3 -> 62 | F7: =(1+$B$1*C7)^D7*(1-$B$2*C7)^E7*$A$6 -> 10.21672444
C8: 0.02 | D8: =$B$4*$B$3 -> 38 | E8: =$B$5*$B$3 -> 62 | F8: =(1+$B$1*C8)^D8*(1-$B$2*C8)^E8*$A$6 -> 10.43766489
C9: 0.03 | D9: 38 | E9: 62 | F9: 10.66289283
C10: 0.04 | D10: 38 | E10: 62 | F10: 10.89248071
C11: 0.05 | D11: 38 | E11: 62 | F11: 11.126502
C12: 0.06 | D12: 38 | E12: 62 | F12: 11.3650312
C13: 0.07 | D13: 38 | E13: 62 | F13: 11.60814381
C14: 0.08 | D14: 38 | E14: 62 | F14: 11.85591639
C15: 0.09 | D15: 38 | E15: 62 | F15: 12.10842654
C16: 0.1 | D16: 38 | E16: 62 | F16: 12.36575293
C17: 0.11 | D17: 38 | E17: 62 | F17: 12.62797528
C18: 0.12 | D18: 38 | E18: 62 | F18: 12.89517439
C19: 0.13 | D19: 38 | E19: 62 | F19: 13.16743218
C20: 0.14 | D20: 38 | E20: 62 | F20: 13.44483162
C21: 0.15 | D21: 38 | E21: 62 | F21: 13.72745683
C22: 0.16 | D22: 38 | E22: 62 | F22: 14.01539303
C23: 0.17 | D23: 38 | E23: 62 | F23: 14.30872657
C24: 0.18 | D24: 38 | E24: 62 | F24: 14.60754496
C25: 0.19 | D25: 38 | E25: 62 | F25: 14.91193682
C26: 0.2 | D26: 38 | E26: 62 | F26: 15.22199198
C27: 0.21 | D27: 38 | E27: 62 | F27: 15.5378014
C28: 0.22 | D28: 38 | E28: 62 | F28: 15.85945724
C29: 0.23 | D29: 38 | E29: 62 | F29: 16.18705285
C30: 0.24 | D30: 38 | E30: 62 | F30: 16.52068279
C31: 0.25 | D31: 38 | E31: 62 | F31: 16.86044281
C32: 0.26 | D32: 38 | E32: 62 | F32: 17.20642991
C33: 0.27 | D33: 38 | E33: 62 | F33: 17.55874229
C34: 0.28 | D34: 38 | E34: 62 | F34: 17.91747943
C35: 0.29 | D35: 38 | E35: 62 | F35: 18.28274203
C36: 0.3 | D36: 38 | E36: 62 | F36: 18.65463208
C37: 0.31 | D37: 38 | E37: 62 | F37: 19.03325284
C38: 0.32 | D38: 38 | E38: 62 | F38: 19.41870883
C39: 0.33 | D39: 38 | E39: 62 | F39: 19.81110589
C40: 0.34 | D40: 38 | E40: 62 | F40: 20.21055117
C41: 0.35 | D41: 38 | E41: 62 | F41: 20.61715311
C42: 0.36 | D42: 38 | E42: 62 | F42: 21.03102149
C43: 0.37 | D43: 38 | E43: 62 | F43: 21.45226743
C44: 0.38 | D44: 38 | E44: 62 | F44: 21.88100339
C45: 0.39 | D45: 38 | E45: 62 | F45: 22.31734318
C46: 0.4 | D46: 38 | E46: 62 | F46: 22.76140199
C47: 0.41 | D47: 38 | E47: 62 | F47: 23.21329638
C48: 0.42 | D48: 38 | E48: 62 | F48: 23.6731443
C49: 0.43 | D49: 38 | E49: 62 | F49: 24.14106508
C50: 0.44 | D50: 38 | E50: 62 | F50: 24.61717948
C51: 0.45 | D51: 38 | E51: 62 | F51: 25.10160966
C52: 0.46 | D52: 38 | E52: 62 | F52: 25.59447922
C53: 0.47 | D53: 38 | E53: 62 | F53: 26.09591319
C54: 0.48 | D54: 38 | E54: 62 | F54: 26.60603804
C55: 0.49 | D55: 38 | E55: 62 | F55: 27.12498171
C56: 0.5 | D56: 38 | E56: 62 | F56: 27.65287359
C57: 0.51 | D57: 38 | E57: 62 | F57: 28.18984456
C58: 0.52 | D58: 38 | E58: 62 | F58: 28.73602697
C59: 0.53 | D59: 38 | E59: 62 | F59: 29.29155469
C60: 0.54 | D60: 38 | E60: 62 | F60: 29.85656307
C61: 0.55 | D61: 38 | E61: 62 | F61: 30.43118899
C62: 0.56 | D62: 38 | E62: 62 | F62: 31.01557084
C63: 0.57 | D63: 38 | E63: 62 | F63: 31.60984856
C64: 0.58 | D64: 38 | E64: 62 | F64: 32.21416361
C65: 0.59 | D65: 38 | E65: 62 | F65: 32.82865903
C66: 0.6 | D66: 38 | E66: 62 | F66: 33.45347939
C67: 0.61 | D67: 38 | E67: 62 | F67: 34.08877085
C68: 0.62 | D68: 38 | E68: 62 | F68: 34.73468115
C69: 0.63 | D69: 38 | E69: 62 | F69: 35.3913596
C70: 0.64 | D70: 38 | E70: 62 | F70: 36.05895713
C71: 0.65 | D71: 38 | E71: 62 | F71: 36.73762626
C72: 0.66 | D72: =$B$4*$B$3 -> 38 | E72: =$B$5*$B$3 -> 62 | F72: =(1+$B$1*C72)^D72*(1-$B$2*C72)^E72*$A$6 -> 37.42752113
C73: 0.67 | D73: 38 | E73: 62 | F73: 38.12879751
C74: 0.68 | D74: 38 | E74: 62 | F74: 38.84161277
C75: 0.69 | D75: 38 | E75: 62 | F75: 39.56612595
C76: 0.7 | D76: 38 | E76: 62 | F76: 40.30249775
C77: 0.71 | D77: 38 | E77: 62 | F77: 41.05089048
C78: 0.72 | D78: 38 | E78: 62 | F78: 41.81146815
C79: 0.73 | D79: 38 | E79: 62 | F79: 42.58439644
C80: 0.74 | D80: 38 | E80: 62 | F80: 43.3698427
C81: 0.75 | D81: 38 | E81: 62 | F81: 44.16797596
C82: 0.76 | D82: 38 | E82: 62 | F82: 44.97896697
C83: 0.77 | D83: 38 | E83: 62 | F83: 45.80298817
C84: 0.78 | D84: 38 | E84: 62 | F84: 46.6402137
C85: 0.79 | D85: 38 | E85: 62 | F85: 47.49081944
C86: 0.8 | D86: 38 | E86: 62 | F86: 48.35498297
C87: 0.81 | D87: 38 | E87: 62 | F87: 49.23288363
C88: 0.82 | D88: 38 | E88: 62 | F88: 50.12470248
C89: 0.83 | D89: 38 | E89: 62 | F89: 51.03062233
C90: 0.84 | D90: 38 | E90: 62 | F90: 51.95082773
C91: 0.85 | D91: 38 | E91: 62 | F91: 52.88550502
C92: 0.86 | D92: 38 | E92: 62 | F92: 53.83484228
C93: 0.87 | D93: 38 | E93: 62 | F93: 54.79902937
C94: 0.88 | D94: 38 | E94: 62 | F94: 55.77825792
C95: 0.89 | D95: 38 | E95: 62 | F95: 56.77272134
C96: 0.9 | D96: 38 | E96: 62 | F96: 57.78261486
C97: 0.91 | D97: 38 | E97: 62 | F97: 58.80813547
C98: 0.92 | D98: 38 | E98: 62 | F98: 59.84948196
C99: 0.93 | D99: 38 | E99: 62 | F99: 60.90685496
C100: 0.94 | D100: 38 | E100: 62 | F100: 61.98045687
C101: 0.95 | D101: 38 | E101: 62 | F101: 63.07049193
C102: 0.96 | D102: 38 | E102: 62 | F102: 64.17716619
C103: 0.97 | D103: 38 | E103: 62 | F103: 65.30068752
C104: 0.98 | D104: 38 | E104: 62 | F104: 66.44126564
C105: 0.99 | D105: 38 | E105: 62 | F105: 67.59911207
C106: 1 | D106: 38 | E106: 62 | F106: 68.77444019

Sheet Sheet3
